[Event "New York Summer IM-C 2022"]
[Site "New York"]
[Date "2022.07.08"]
[Round "1.1"]
[White "Bortnyk, Mykola"]
[Black "Huston, Gus"]
[Result "1-0"]
[ECO "E09"]
[WhiteElo "2463"]
[BlackElo "2282"]
[Annotator "TA"]
[PlyCount "119"]
[EventDate "2022.07.08"]
[EventType "tourn"]
[EventCountry "USA"]
[SourceTitle "playchess.com"]
[Source "ChessBase"]
[SourceQuality "1"]
[TimeControl "5400+30"]

{[%evp 21,119,25,27,16,23,34,54,59,89,29,108,110,112,104,125,113,116,122,123,109,137,121,128,122,127,125,170,177,171,159,180,160,163,158,154,153,177,140,150,144,140,142,155,139,135,143,147,131,145,145,137,117,127,91,143,135,130,103,135,136,141,148,150,150,181,180,185,188,183,178,179,187,249,262,253,195,477,471,598,567,666,683,897,504,2476,2556,2554,2427,2106,1347,29980,29981,29981,29982,29982,29983,29983,29983,29989,29990]} 1. d4 {[%emt 1:31:00]} Nf6 {[%emt 1:31:00]} 2. Nf3 {[%emt 0:00:30]} e6 {[%emt 0:00:30]} 3. c4 {[%emt 0:00:30]} d5 {[%emt 0:00:30]} 4. g3 {[%emt 0:00:30]} Be7 {[%emt 0:00:30]} 5. Bg2 {[%emt 0:00:30]} O-O {[%emt 0:00:30]} 6. O-O {[%emt 0:00:30]} Nbd7 {[%emt 0:00:30]} 7. Qc2 {[%emt 0:00:30]} c6 {[%emt 0:00:30]} 8. Nbd2 {[%emt 0:00:30]} b6 {[%emt 0:00:30]} 9. e4 {[%emt 0:00:30]} Bb7 {[%emt 0:00:30]} 10. e5 {[%emt 0:00:30]} Ne8 {[%emt 0:00:30]} 11. cxd5 {[%emt 0:00:30]} cxd5 {[%emt 0:00:30]} 12. Nb1 {[%emt 0:00:30] E09: Closed Catalan: Main Line: 7 Qc2 c6 8 Nbd2.} b5 {[%emt 0:00:30] [#]} 13. h4 $146 {[%emt 0:00:30]} ({Predecessor:} 13. a3 a5 14. Nc3 b4 15. axb4 axb4 16. Rxa8 Qxa8 17. Ne2 Ba6 18. Re1 Qb7 19. b3 Bxe2 20. Qxe2 {½-½ (32) Kalaiyalahan,A (2288)-Mitra,R (2073) Bournemouth 2016}) 13... Qc7 {[%emt 0:00:30]} 14. Qb3 {[%emt 0:00:30] White is slightly better.} Qc4 {[%emt 0:00:30]} 15. Nbd2 {[%emt 0:00:30]} ({White should try} 15. Bg5 $16 Bxg5 16. hxg5) 15... Qxb3 {[%emt 0:00:30]} (15... Qc6 $11 {keeps the balance.}) 16. Nxb3 $16 {[%emt 0:00:30]} a5 {[%emt 0:00:30]} 17. Bg5 {[%emt 0:00:30]} f6 {[%emt 0:00:30]} 18. exf6 {[%emt 0:00:30]} gxf6 {[%emt 0:00:30]} 19. Bh6 {[%emt 0:00:30]} Ng7 {[%emt 0:00:30]} 20. Rfe1 {[%emt 0:00:30]} Rfe8 {[%emt 0:00:30]} 21. Bxg7 {White is more active.} Kxg7 22. Rxe6 a4 23. Nc1 {[%cal Bb3c1,Bc1d3,Bd3c5][%mdl 32]} ({Weaker is} 23. Rae1 axb3 24. axb3 (24. Rxe7+ Rxe7 25. Rxe7+ Kf8 $17) 24... Kf7 $17) 23... Bf8 {[%emt 0:01:30]} 24. Rxe8 {[%emt 0:02:00]} Rxe8 {[%emt 0:00:30]} 25. Nd3 {[%emt 0:00:30]} Bd6 {[%emt 0:00:30]} 26. Bh3 {[%emt 0:00:30]} Nb6 {[%emt 0:00:30]} 27. Nc5 {[%emt 0:00:30]} Bc8 {[%emt 0:00:30]} 28. Bf1 {[%emt 0:00:30]} b4 {[%emt 0:00:30]} 29. Bb5 {[%emt 0:00:30][%csl LRa4,LRe8]} Re7 {[%emt 0:00:30]} 30. Nxa4 {[%emt 0:00:30]} Nxa4 {[%emt 0:00:30]} 31. Bxa4 {[%emt 0:00:30]} Re2 {[%emt 0:00:30]} 32. Bb3 {[%emt 0:00:30]} Rxb2 {[%emt 0:00:30]} 33. Bxd5 {[%emt 0:00:30]} Bg4 {[%emt 0:00:30]} 34. Kg2 {[%emt 0:00:30]} Bc7 {[%emt 0:00:30]} 35. Re1 {[%emt 0:00:30] Black must now prevent Re7+.} Kf8 {[%emt 0:00:30] Inhibits Re7.} 36. Re4 {[%emt 0:00:30]} h5 {[%emt 0:00:30]} 37. Nh2 {[%emt 0:00:30]} Bf5 {[%emt 0:00:30] [#]} (37... Bd7 $142 38. Nf1 Bb8) 38. Re3 $1 {[%emt 0:00:30] And now Rf3 would win.} Bd8 {[%emt 0:00:30]} 39. a3 {[%emt 0:00:30]} Bc2 {[%emt 0:00:30]} 40. axb4 {[%emt 0:00:30]} Rxb4 {[%emt 0:00:30]} 41. Be4 {[%emt 0:00:30]} Bd1 {[%emt 0:00:30]} 42. d5 {[%emt 0:00:30][%cal Bd4d5,Bd5d6,Bd6d7][%mdl 32]} Bb6 {[%emt 0:00:30]} 43. Re1 {[%emt 0:00:30]} Bb3 {[%emt 0:00:30][%cal Ob4e4]} 44. Bf3 {[%emt 0:00:30]} Bc4 {[%emt 0:00:30]} 45. Nf1 {[%emt 0:00:30]} Rb5 {[%emt 0:00:30]} 46. d6 {[%emt 0:00:30] Hoping for d7.} Bxf1+ {[%emt 0:00:30]} (46... Rb2 {was worth a try.}) 47. Rxf1 $18 {[%emt 0:00:30][%mdl 4096] Endgame KRB-KRB} Kf7 {[%emt 0:00:30]} 48. Rd1 {[%emt 0:00:30]} Rb2 $2 {[%emt 0:00:30]} (48... Ke6 49. d7 Ke7) 49. Bxh5+ {[%emt 0:00:30]} Ke6 {[%emt 0:00:30]} 50. d7 {[%emt 0:00:30]} Rxf2+ {[%emt 0:00:30]} 51. Kh3 {[%emt 0:00:30]} Bd8 {[%emt 0:00:30]} 52. Be8 {[%emt 0:00:30] h5 is the strong threat.} f5 {[%emt 0:00:30]} (52... Rf5 $142 53. Bg6 Re5) 53. h5 {[%emt 0:00:30][%cal Bh4h5,Bh5h6,Bh6h7][%mdl 32]} f4 {[%emt 0:00:30]} 54. h6 {[%emt 0:00:30]} fxg3 {[%emt 0:00:30]} 55. Re1+ {[%emt 0:00:30]} Kf5 {[%emt 0:00:30]} 56. Kxg3 {[%emt 0:00:30] White mates.} Rd2 {[%emt 0:00:30]} 57. h7 {[%emt 0:00:30]} Bc7+ {[%emt 0:00:30]} 58. Kf3 {[%emt 0:00:30]} Rh2 {[%emt 0:00:30]} 59. Rc1 {[%emt 0:00:30]} Bd8 {[%emt 0:00:30] [#]} 60. Bh5 $1 {[%emt 0:00:30][%mdl 512] Weighted Error Value: White=0.17 (very precise) /Black=0.43} 1-0

[Event "New York Summer IM-C 2022"]
[Site "New York"]
[Date "2022.07.08"]
[Round "1.2"]
[White "Le, Nguyen Khoi Nguyen"]
[Black "Poliannikov, Danila"]
[Result "0-1"]
[ECO "C52"]
[WhiteElo "2001"]
[BlackElo "2309"]
[Annotator "RC"]
[PlyCount "74"]
[EventDate "2022.07.08"]
[EventType "tourn"]
[EventCountry "USA"]
[SourceTitle "playchess.com"]
[Source "ChessBase"]
[SourceQuality "1"]
[TimeControl "5400+30"]

1. e4 {[%emt 1:31:00]} e5 {[%emt 1:31:00]} 2. Nf3 {[%emt 0:00:30]} Nc6 {[%emt 0:00:30]} 3. Bc4 {[%emt 0:00:30]} Bc5 {[%emt 0:00:30]} 4. b4 {[%emt 0:00:30]} Bxb4 {[%emt 0:00:30]} 5. c3 Ba5 {[%emt 0:00:30]} 6. d4 {[%emt 0:01:00]} Bb6 {[%emt 0:00:30]} 7. Ng5 {[%emt 0:00:30]} Nh6 {[%emt 0:00:30]} 8. a4 {[%emt 0:00:30]} O-O {[%emt 0:00:30]} 9. h4 {[%emt 0:00:30]} d6 {[%emt 0:00:30]} 10. Bd5 {[%emt 0:00:30]} exd4 {[%emt 0:00:30]} 11. Nf3 {[%emt 0:00:30]} dxc3 {[%emt 0:00:30]} 12. Bxh6 {[%emt 0:00:30]} gxh6 {[%emt 0:00:30]} 13. Nxc3 {[%emt 0:00:30]} Qf6 {[%emt 0:00:30]} 14. Ne2 {[%emt 0:00:30]} Bg4 {[%emt 0:00:30]} 15. Ra3 Ne5 {[%emt 0:00:30]} 16. Ng3 {[%emt 0:01:00]} c6 {[%emt 0:00:30]} 17. Ba2 {[%emt 0:00:30]} Nxf3+ {[%emt 0:00:30]} 18. gxf3 {[%emt 0:00:30]} Qb2 {[%emt 0:00:30]} 19. Qd2 {[%emt 0:00:30]} Qxd2+ {[%emt 0:00:30]} 20. Kxd2 {[%emt 0:00:30]} Be6 {[%emt 0:00:30]} 21. Bxe6 {[%emt 0:00:30]} fxe6 {[%emt 0:00:30]} 22. Ke2 {[%emt 0:00:30]} Bc5 {[%emt 0:00:30]} 23. Rb3 {[%emt 0:00:30]} Rab8 {[%emt 0:00:30]} 24. Rhb1 {[%emt 0:00:30]} b6 {[%emt 0:00:30]} 25. Nh5 {[%emt 0:00:30]} Kf7 {[%emt 0:00:30]} 26. f4 {[%emt 0:00:30]} Rg8 {[%emt 0:00:30]} 27. Kf3 {[%emt 0:00:30]} d5 {[%emt 0:00:30]} 28. Ng3 {[%emt 0:00:30]} Be7 {[%emt 0:00:30]} 29. exd5 {[%emt 0:00:30]} cxd5 {[%emt 0:00:30]} 30. Rc3 {[%emt 0:00:30]} Rgc8 {[%emt 0:00:30]} 31. Rbc1 {[%emt 0:00:30]} Rc5 {[%emt 0:00:30]} 32. Kg4 {[%emt 0:00:30]} Rbc8 {[%emt 0:00:30]} 33. Rxc5 {[%emt 0:00:30]} bxc5 {[%emt 0:00:30]} 34. Kh5 {[%emt 0:00:30]} c4 {[%emt 0:00:30]} 35. Kxh6 {[%emt 0:00:30]} Ba3 {[%emt 0:00:30]} 36. Rg1 {[%emt 0:00:30]} c3 {[%emt 0:00:30]} 37. Ne2 {[%emt 0:00:30]} c2 {[%emt 0:00:30]} 0-1

[Event "New York Summer IM-C 2022"]
[Site "New York"]
[Date "2022.07.08"]
[Round "1.3"]
[White "Hardaway, Brewington"]
[Black "Rozman, Levy"]
[Result "*"]
[ECO "B12"]
[WhiteElo "2175"]
[BlackElo "2333"]
[Annotator "RC"]
[PlyCount "61"]
[EventDate "2022.07.08"]
[EventType "tourn"]
[EventCountry "USA"]
[SourceTitle "playchess.com"]
[Source "ChessBase"]
[SourceQuality "1"]
[TimeControl "5400+30"]

1. e4 {[%emt 1:31:00]} c6 {[%emt 1:31:00]} 2. d4 {[%emt 0:00:30]} d5 {[%emt 0:00:30]} 3. e5 {[%emt 0:00:30]} Bf5 {[%emt 0:00:30]} 4. h4 {[%emt 0:00:30]} a6 {[%emt 0:00:30]} 5. g4 {[%emt 0:00:30]} Bd7 {[%emt 0:00:30]} 6. Nc3 {[%emt 0:00:30]} c5 {[%emt 0:00:30]} 7. dxc5 {[%emt 0:00:30]} e6 {[%emt 0:00:30]} 8. Be3 {[%emt 0:00:30]} Qc7 {[%emt 0:00:30]} 9. Nf3 {[%emt 0:00:30]} Bxc5 {[%emt 0:00:30]} 10. Bxc5 {[%emt 0:00:30]} Qxc5 {[%emt 0:00:30]} 11. Qd2 {[%emt 0:00:30]} Ne7 {[%emt 0:00:30]} 12. O-O-O {[%emt 0:00:30]} b5 {[%emt 0:00:30]} 13. a3 {[%emt 0:00:30]} b4 {[%emt 0:00:30]} 14. axb4 {[%emt 0:00:30]} Qxb4 {[%emt 0:00:30]} 15. Ne2 {[%emt 0:00:30]} Qa4 16. Qd4 Qa1+ 17. Kd2 Qa5+ 18. Qc3 Qb6 19. Ned4 {[%emt 0:02:00]} Nbc6 {[%emt 0:02:30]} 20. Qb3 {[%emt 0:00:30]} Qc7 {[%emt 0:00:30]} 21. Qc3 {[%emt 0:00:30]} O-O {[%emt 0:00:30]} 22. g5 {[%emt 0:00:30]} Rfc8 {[%emt 0:00:30]} 23. Nb3 {[%emt 0:00:30]} Qa7 {[%emt 0:00:30]} 24. Ke1 {[%emt 0:00:30]} Rab8 {[%emt 0:00:30]} 25. Bd3 {[%emt 0:00:30]} Nb4 {[%emt 0:00:30]} 26. Qd2 {[%emt 0:00:30]} Nxd3+ {[%emt 0:00:30]} 27. Qxd3 {[%emt 0:00:30]} Bb5 {[%emt 0:00:30]} 28. Qd2 {[%emt 0:00:30]} Ba4 {[%emt 0:00:30]} 29. Kf1 {[%emt 0:00:30]} Rc5 {[%emt 0:00:30]} 30. c3 Rxc3 31. Qc2 {[%emt 0:01:00]} *

[Event "New York Summer IM-C 2022"]
[Site "New York"]
[Date "2022.07.08"]
[Round "1.4"]
[White "Adewumi, Tanitoluwa"]
[Black "Asavasaetakul, Chawit"]
[Result "1-0"]
[ECO "B13"]
[WhiteElo "2309"]
[BlackElo "1948"]
[Annotator "RC"]
[PlyCount "95"]
[EventDate "2022.07.08"]
[EventType "tourn"]
[EventCountry "USA"]
[SourceTitle "playchess.com"]
[Source "ChessBase"]
[SourceQuality "1"]
[TimeControl "5400+30"]

1. e4 {[%emt 0:00:56]} c6 {[%emt 0:00:06]} 2. d4 {[%emt 0:00:07]} d5 {[%emt 0:00:07]} 3. exd5 {[%emt 0:00:06]} cxd5 {[%emt 0:00:05]} 4. Bd3 {[%emt 0:00:13]} Nc6 {[%emt 0:00:23]} 5. c3 {[%emt 0:00:01]} Nf6 {[%emt 0:00:12]} 6. Bf4 {[%emt 0:00:09]} Bg4 {[%emt 0:01:08]} 7. Qb3 {[%emt 0:00:18]} Qd7 {[%emt 0:00:27]} 8. Nd2 {[%emt 0:00:12]} e6 {[%emt 0:00:10]} 9. Ngf3 {[%emt 0:00:06]} Bxf3 {[%emt 0:00:11]} 10. Nxf3 {[%emt 0:00:09]} Bd6 {[%emt 0:00:06]} 11. Bxd6 {[%emt 0:00:13]} Qxd6 {[%emt 0:00:05]} 12. O-O {[%emt 0:00:09]} O-O {[%emt 0:00:07]} 13. Rfe1 {[%emt 0:00:04]} Rab8 {[%emt 0:04:36]} 14. a4 {[%emt 0:00:16]} Rfc8 {[%emt 0:02:17]} 15. Ne5 {[%emt 0:01:54]} Nd7 {[%emt 0:04:56]} 16. f4 {[%emt 0:01:36]} g6 {[%emt 0:17:16]} 17. Re3 {[%emt 0:15:15]} Nf8 {[%emt 0:09:37]} 18. Qd1 {[%emt 0:04:24]} f6 {[%emt 0:05:52]} 19. Ng4 {[%emt 0:00:47]} Kg7 {[%emt 0:01:26]} 20. Qf3 {[%emt 0:01:14]} f5 {[%emt 0:05:37]} 21. Ne5 {[%emt 0:00:45]} Nxe5 {[%emt 0:00:27]} 22. fxe5 {[%emt 0:00:23]} Qe7 {[%emt 0:06:05]} 23. Qe2 {[%emt 0:07:05]} h5 {[%emt 0:05:00]} 24. Rf1 {[%emt 0:02:19]} Nh7 {[%emt 0:01:24]} 25. Rd1 {[%emt 0:02:26]} Ng5 {[%emt 0:04:38]} 26. Qf1 {[%emt 0:09:05]} a6 {[%emt 0:09:38]} 27. c4 {[%emt 0:02:18]} dxc4 {[%emt 0:08:49]} 28. Bxc4 {[%emt 0:01:51]} b5 {[%emt 0:03:33]} 29. axb5 {[%emt 0:00:27]} axb5 {[%emt 0:00:04]} 30. Bb3 {[%emt 0:03:45]} Ne4 {[%emt 0:00:21]} 31. Qf4 {[%emt 0:00:43]} g5 {[%emt 0:05:32]} 32. Qf3 {[%emt 0:00:09]} Kh6 {[%emt 0:01:57]} 33. Qe2 {[%emt 0:14:50]} Rb6 {[%emt 0:02:14]} 34. Bc2 {[%emt 0:00:42]} Rbc6 {[%emt 0:01:03]} 35. Bxe4 {[%emt 0:19:42]} fxe4 {[%emt 0:00:02]} 36. Qxb5 {[%emt 0:02:25]} Rc1 {[%emt 0:01:49]} 37. Qf1 {[%emt 0:11:56]} Rf8 {[%emt 0:00:53]} 38. Rxc1 {[%emt 0:00:00]} Rxf1+ {[%emt 0:00:07]} 39. Rxf1 {[%emt 0:00:00]} Qb4 {[%emt 0:00:54]} 40. Rxe4 {[%emt 0:00:00]} h4 {[%emt 0:00:40]} 41. Rf6+ {[%emt 0:00:00]} Kh5 {[%emt 0:00:05]} 42. h3 {[%emt 0:00:00]} Qxb2 {[%emt 0:00:27]} 43. Rg4 {[%emt 0:00:00]} Qa2 {[%emt 0:00:38]} 44. Kh2 {[%emt 0:00:00]} Qb3 {[%emt 0:00:13]} 45. Rf8 {[%emt 0:00:00]} Qe3 {[%emt 0:00:49]} 46. Rh8+ {[%emt 0:00:00]} Kg6 {[%emt 0:00:05]} 47. Rhxh4 {[%emt 0:00:00]} Qd2 {[%emt 0:01:00]} 48. Rg3 {[%emt 0:00:00]} 1-0

[Event "New York Summer IM-C 2022"]
[Site "New York"]
[Date "2022.07.08"]
[Round "1.5"]
[White "Nakada, Akira"]
[Black "Martin Del Campo Cardenas, Roberto Abel"]
[Result "1-0"]
[ECO "A34"]
[WhiteElo "2297"]
[BlackElo "2245"]
[Annotator "RC"]
[PlyCount "69"]
[EventDate "2022.07.08"]
[EventType "tourn"]
[EventCountry "USA"]
[SourceTitle "playchess.com"]
[Source "ChessBase"]
[SourceQuality "1"]
[TimeControl "5400+30"]

1. c4 {[%emt 0:00:03]} Nf6 {[%emt 0:02:11]} 2. Nc3 {[%emt 0:00:10]} d6 {[%emt 0:00:11]} 3. e4 {[%emt 0:03:55]} c5 {[%emt 0:03:26]} 4. Nf3 {[%emt 0:01:46]} Nc6 {[%emt 0:02:20]} 5. d4 {[%emt 0:02:20]} Bg4 {[%emt 0:04:55]} 6. d5 {[%emt 0:02:50]} Nd4 {[%emt 0:06:03]} 7. Be3 {[%emt 0:01:49]} Bxf3 {[%emt 0:05:08]} 8. gxf3 {[%emt 0:00:05]} g6 {[%emt 0:00:10]} 9. Bg2 {[%emt 0:05:06]} Bg7 {[%emt 0:00:43]} 10. O-O {[%emt 0:00:19]} O-O {[%emt 0:01:17]} 11. Ne2 {[%emt 0:01:46]} Nh5 {[%emt 0:15:20]} 12. Ng3 {[%emt 0:14:47]} Nxg3 {[%emt 0:13:49]} 13. hxg3 {[%emt 0:00:37]} a6 {[%emt 0:00:21]} 14. b4 {[%emt 0:02:14]} b6 {[%emt 0:13:24]} 15. Rb1 {[%emt 0:02:45]} e6 {[%emt 0:02:48]} 16. f4 {[%emt 0:04:39]} exd5 {[%emt 0:00:48]} 17. cxd5 {[%emt 0:00:17]} Re8 {[%emt 0:03:19]} 18. g4 {[%emt 0:04:35]} Nb5 {[%emt 0:04:02]} 19. Qd3 {[%emt 0:07:19]} Qc8 {[%emt 0:02:19]} 20. bxc5 {[%emt 0:16:18]} bxc5 {[%emt 0:00:17]} 21. f5 {[%emt 0:00:55]} c4 {[%emt 0:00:23]} 22. Qd2 {[%emt 0:00:01]} Nc3 {[%emt 0:00:25]} 23. Rb6 {[%emt 0:00:05]} Nxe4 {[%emt 0:00:44]} 24. Qc2 {[%emt 0:00:21]} gxf5 {[%emt 0:00:44]} 25. Rc6 {[%emt 0:00:35]} Qd7 {[%emt 0:00:53]} 26. Qxc4 {[%emt 0:03:03]} f4 {[%emt 0:04:39]} 27. Bc1 {[%emt 0:15:58]} Nc3 {[%emt 0:06:40]} 28. Bf3 {[%emt 0:00:01]} Re4 {[%emt 0:02:13]} 29. Qd3 {[%emt 0:03:08]} Rc8 {[%emt 0:01:02]} 30. Rxc8+ {[%emt 0:01:00]} Qxc8 {[%emt 0:00:03]} 31. Bxe4 {[%emt 0:00:23]} Qxg4+ {[%emt 0:01:19]} 32. Bg2 {[%emt 0:00:05]} Ne2+ {[%emt 0:01:31]} 33. Kh1 {[%emt 0:00:09]} Ng3+ {[%emt 0:01:58]} 34. fxg3 {[%emt 0:00:11]} fxg3 {[%emt 0:00:09]} 35. Qf5 {[%emt 0:00:13]} 1-0

[Event "New York Summer IM-C 2022"]
[Site "New York"]
[Date "2022.07.08"]
[Round "2.1"]
[White "Huston, Gus"]
[Black "Martin Del Campo Cardenas, Roberto Abel"]
[Result "0-1"]
[ECO "B52"]
[WhiteElo "2282"]
[BlackElo "2245"]
[Annotator "RC"]
[PlyCount "122"]
[EventDate "2022.07.08"]
[EventType "tourn"]
[EventCountry "USA"]
[SourceTitle "playchess.com"]
[Source "ChessBase"]
[SourceQuality "1"]
[TimeControl "5400+30"]

1. e4 {[%emt 1:31:00]} c5 {[%emt 1:31:00]} 2. Nf3 {[%emt 0:00:30]} d6 {[%emt 0:00:30]} 3. Bb5+ {[%emt 0:00:30]} Bd7 {[%emt 0:00:30]} 4. Bxd7+ {[%emt 0:00:30]} Qxd7 {[%emt 0:00:30]} 5. O-O {[%emt 0:00:30]} Nc6 {[%emt 0:00:30]} 6. c3 {[%emt 0:00:30]} Nf6 {[%emt 0:00:30]} 7. d4 {[%emt 0:00:30]} cxd4 {[%emt 0:00:30]} 8. cxd4 {[%emt 0:00:30]} d5 {[%emt 0:00:30]} 9. e5 {[%emt 0:00:30]} Ne4 {[%emt 0:00:30]} 10. Ne1 {[%emt 0:00:30]} f6 {[%emt 0:00:30]} 11. f3 {[%emt 0:00:30]} Ng5 {[%emt 0:00:30]} 12. Be3 {[%emt 0:00:30]} e6 {[%emt 0:00:30]} 13. Nc3 {[%emt 0:00:30]} Be7 {[%emt 0:00:30]} 14. Nd3 {[%emt 0:00:30]} fxe5 15. Nxe5 Nxe5 16. dxe5 O-O 17. f4 Nf7 18. h3 {[%emt 0:02:00]} b6 {[%emt 0:02:30]} 19. Rc1 {[%emt 0:00:30]} Rac8 {[%emt 0:00:30]} 20. Bd4 {[%emt 0:00:30]} Nd8 {[%emt 0:00:30]} 21. Kh2 {[%emt 0:00:30]} Nc6 {[%emt 0:00:30]} 22. Ne2 Nxd4 {[%emt 0:00:30]} 23. Qxd4 {[%emt 0:01:00]} Qb5 {[%emt 0:00:30]} 24. Qd2 {[%emt 0:00:30]} Bb4 {[%emt 0:00:30]} 25. Qd1 {[%emt 0:00:30]} Rxc1 {[%emt 0:00:30]} 26. Nxc1 {[%emt 0:00:30]} Bd2 {[%emt 0:00:30]} 27. f5 {[%emt 0:00:30]} d4 {[%emt 0:00:30]} 28. Qe2 {[%emt 0:00:30]} Qxe2 {[%emt 0:00:30]} 29. Nxe2 {[%emt 0:00:30]} Rxf5 {[%emt 0:00:30]} 30. Rd1 {[%emt 0:00:30]} Bf4+ {[%emt 0:00:30]} 31. Nxf4 {[%emt 0:00:30]} Rxf4 {[%emt 0:00:30]} 32. Kg3 {[%emt 0:00:30]} g5 {[%emt 0:00:30]} 33. Rc1 {[%emt 0:00:30]} h5 {[%emt 0:00:30]} 34. Rc7 {[%emt 0:00:30]} h4+ {[%emt 0:00:30]} 35. Kh2 {[%emt 0:00:30]} Rf7 {[%emt 0:00:30]} 36. Rc8+ {[%emt 0:00:30]} Rf8 {[%emt 0:00:30]} 37. Rc2 {[%emt 0:00:30]} Kg7 {[%emt 0:00:30]} 38. g3 {[%emt 0:00:30]} hxg3+ {[%emt 0:00:30]} 39. Kxg3 {[%emt 0:00:30]} Kg6 {[%emt 0:00:30]} 40. h4 {[%emt 0:00:30]} Rd8 {[%emt 0:00:30]} 41. hxg5 {[%emt 0:00:30]} Kxg5 {[%emt 0:00:30]} 42. Kf2 {[%emt 0:00:30]} d3 {[%emt 0:00:30]} 43. Rd2 {[%emt 0:00:30]} Kf4 {[%emt 0:00:30]} 44. Ke1 {[%emt 0:00:30]} Kxe5 {[%emt 0:00:30]} 45. Rh2 {[%emt 0:00:30]} d2+ {[%emt 0:00:30]} 46. Kd1 {[%emt 0:00:30]} Rd7 {[%emt 0:00:30]} 47. Re2+ {[%emt 0:00:30]} Kf5 {[%emt 0:00:30]} 48. Rf2+ {[%emt 0:00:30]} Kg4 {[%emt 0:00:30]} 49. Re2 {[%emt 0:00:30]} Rd6 {[%emt 0:00:30]} 50. b4 b5 {[%emt 0:00:30]} 51. Re5 {[%emt 0:01:00]} a6 {[%emt 0:00:30]} 52. a4 {[%emt 0:00:30]} Kf4 {[%emt 0:00:30]} 53. Rc5 {[%emt 0:00:30]} bxa4 {[%emt 0:00:30]} 54. Ra5 {[%emt 0:00:30]} e5 {[%emt 0:00:30]} 55. Rxa4 {[%emt 0:00:30]} e4 {[%emt 0:00:30]} 56. Ra1 {[%emt 0:00:30]} Kf3 {[%emt 0:00:30]} 57. Ra5 {[%emt 0:00:30]} e3 {[%emt 0:00:30]} 58. Rf5+ {[%emt 0:00:30]} Ke4 {[%emt 0:00:30]} 59. Rf1 {[%emt 0:00:30]} Kd3 {[%emt 0:00:30]} 60. Rf3 {[%emt 0:00:30]} Rf6 {[%emt 0:00:30]} 61. b5 {[%emt 0:00:30]} Rxf3 {[%emt 0:00:30]} 0-1

[Event "New York Summer IM-C 2022"]
[Site "New York"]
[Date "2022.07.08"]
[Round "2.2"]
[White "Asavasaetakul, Chawit"]
[Black "Nakada, Akira"]
[Result "0-1"]
[ECO "B13"]
[WhiteElo "1948"]
[BlackElo "2297"]
[Annotator "RC"]
[PlyCount "96"]
[EventDate "2022.07.08"]
[EventType "tourn"]
[EventCountry "USA"]
[SourceTitle "playchess.com"]
[Source "ChessBase"]
[SourceQuality "1"]
[TimeControl "5400+30"]

1. e4 {[%emt 1:31:00]} c6 {[%emt 1:31:00]} 2. d4 {[%emt 0:00:30]} d5 {[%emt 0:00:30]} 3. exd5 {[%emt 0:00:30]} cxd5 {[%emt 0:00:30]} 4. Bd3 {[%emt 0:00:30]} Nc6 {[%emt 0:00:30]} 5. c3 {[%emt 0:00:30]} Qc7 {[%emt 0:00:30]} 6. Ne2 {[%emt 0:00:30]} Bg4 {[%emt 0:00:30]} 7. O-O {[%emt 0:00:30]} e6 {[%emt 0:00:30]} 8. f3 {[%emt 0:00:30]} Bh5 {[%emt 0:00:30]} 9. Bf4 {[%emt 0:00:30]} Bd6 {[%emt 0:00:30]} 10. Bxd6 {[%emt 0:00:30]} Qxd6 {[%emt 0:00:30]} 11. Ng3 {[%emt 0:00:30]} Bg6 {[%emt 0:00:30]} 12. f4 {[%emt 0:00:30]} Bxd3 13. Qxd3 Nf6 {[%emt 0:01:00]} 14. Nd2 {[%emt 0:01:00]} O-O {[%emt 0:00:30]} 15. Qe3 {[%emt 0:00:30]} b5 {[%emt 0:00:30]} 16. Nf3 {[%emt 0:00:30]} b4 {[%emt 0:00:30]} 17. Ne5 {[%emt 0:00:30]} bxc3 {[%emt 0:00:30]} 18. bxc3 {[%emt 0:00:30]} Ne7 {[%emt 0:00:30]} 19. Rfb1 {[%emt 0:00:30]} Rab8 {[%emt 0:00:30]} 20. Rb3 {[%emt 0:00:30]} h5 {[%emt 0:00:30]} 21. h4 {[%emt 0:00:30]} Rb6 {[%emt 0:00:30]} 22. Rab1 {[%emt 0:00:30]} Rfb8 {[%emt 0:00:30]} 23. Qd3 {[%emt 0:00:30]} g6 {[%emt 0:00:30]} 24. Qc2 {[%emt 0:00:30]} Kg7 {[%emt 0:00:30]} 25. Rxb6 Rxb6 {[%emt 0:00:30]} 26. Rxb6 {[%emt 0:01:00]} Qxb6 {[%emt 0:00:30]} 27. Qb3 {[%emt 0:00:30]} Qc7 {[%emt 0:00:30]} 28. Qb4 {[%emt 0:00:30]} Nc8 {[%emt 0:00:30]} 29. a4 {[%emt 0:00:30]} Nd6 {[%emt 0:00:30]} 30. a5 {[%emt 0:00:30]} Nfe4 {[%emt 0:00:30]} 31. Ne2 {[%emt 0:00:30]} Qc8 {[%emt 0:00:30]} 32. Nd3 {[%emt 0:00:30]} Qa6 {[%emt 0:00:30]} 33. Nec1 {[%emt 0:00:30]} Nc4 {[%emt 0:00:30]} 34. Nb3 {[%emt 0:00:30]} Nxa5 {[%emt 0:00:30]} 35. Ndc5 {[%emt 0:00:30]} Nxc5 {[%emt 0:00:30]} 36. Nxc5 {[%emt 0:00:30]} Qb6 {[%emt 0:00:30]} 37. Qxb6 {[%emt 0:00:30]} axb6 {[%emt 0:00:30]} 38. Nd7 {[%emt 0:00:30]} Nc4 {[%emt 0:00:30]} 39. Kf2 {[%emt 0:00:30]} f6 {[%emt 0:00:30]} 40. Kf3 {[%emt 0:00:30]} Kf7 {[%emt 0:00:30]} 41. Nb8 {[%emt 0:00:30]} Ke7 {[%emt 0:00:30]} 42. Nc6+ {[%emt 0:00:30]} Kd7 {[%emt 0:00:30]} 43. Nb4 {[%emt 0:00:30]} Nd6 {[%emt 0:00:30]} 44. g4 {[%emt 0:00:30]} Ne4 {[%emt 0:00:30]} 45. gxh5 {[%emt 0:00:30]} gxh5 {[%emt 0:00:30]} 46. Na2 {[%emt 0:00:30]} Nd6 {[%emt 0:00:30]} 47. Kg3 {[%emt 0:00:30]} Kc6 {[%emt 0:00:30]} 48. Nb4+ {[%emt 0:00:30]} Kb5 {[%emt 0:00:30]} 0-1